bitfinex/quotes_BTCUSD_20241128
["timestamp","ask_amount","ask_price","bid_price","bid_amount"]
[1732837634651,0.10484521,95733.0,95731.0,0.00553537]
[1732837634901,0.10284521,95733.0,95731.0,0.00553537]
[1732837635153,0.10284521,95733.0,95732.0,0.002]
[1732837635362,0.10384521,95733.0,95732.0,0.002]
[1732837635580,0.10384521,95733.0,95732.0,0.00553537]
[1732837635805,0.10384521,95733.0,95731.0,0.003]
[1732837636035,0.10384521,95733.0,95732.0,0.00553537]
[1732837636253,0.10384521,95733.0,95731.0,0.003]
[1732837636497,0.10384521,95733.0,95732.0,0.00553537]
[1732837636748,0.20730221,95733.0,95732.0,0.00553537]
[1732837636986,0.20830221,95733.0,95732.0,0.001]
[1732837637243,0.10384521,95733.0,95724.0,0.208932]
[1732837637484,0.20830221,95733.0,95732.0,0.00553537]
[1732837637715,0.20930221,95733.0,95731.0,0.001]
[1732837637939,0.10384521,95733.0,95724.0,0.208932]
[1732837638157,0.10484521,95733.0,95732.0,0.001]
[1732837638373,0.10484521,95733.0,95732.0,0.003]
[1732837638812,0.20930221,95733.0,95732.0,0.00646968]
[1732837639713,0.20730221,95733.0,95732.0,0.00546968]
[1732837640201,0.20830221,95733.0,95732.0,0.002]
[1732837640655,0.20930221,95733.0,95732.0,0.003]
[1732837641159,0.10484521,95733.0,95732.0,0.003]
[1732837641378,0.10484521,95733.0,95732.0,0.107458]
[1732837641601,0.10484521,95733.0,95732.0,0.00846968]
[1732837642068,0.10484521,95733.0,95732.0,0.232658]
[1732837642558,0.10484521,95733.0,95732.0,0.23812768]
[1732837643075,0.10484521,95733.0,95732.0,0.13366968]
[1732837643530,0.20330221,95733.0,95732.0,0.08526968]
[1732837643749,0.09884521,95733.0,95732.0,0.00846968]
[1732837644213,0.20330221,95733.0,95732.0,0.00846968]
[1732837644426,0.09884521,95733.0,95732.0,0.107458]
[1732837644659,0.09884521,95733.0,95732.0,0.00846968]
[1732837645164,0.20330221,95733.0,95732.0,0.00846968]
[1732837645409,0.20416441,95733.0,95732.0,0.003]
[1732837645653,0.20416441,95733.0,95732.0,0.00846968]
[1732837646328,0.09970741,95733.0,95732.0,0.00846968]
[1732837646772,0.20416441,95733.0,95732.0,0.00846968]
[1732837648640,0.30536441,95733.0,95732.0,0.003]
[1732837649304,0.22716441,95733.0,95732.0,0.003]
[1732837649570,0.22716441,95733.0,95732.0,0.001]
[1732837649999,0.104464,95726.0,95719.0,0.313416]
[1732837650210,0.178931,95725.0,95718.0,0.10378451]
[1732837650465,0.104468,95724.0,95718.0,0.10378451]
[1732837650723,0.31177621,95726.0,95718.0,0.10378451]
[1732837650984,0.104472,95719.0,95718.0,0.10378451]
[1732837651198,0.20731721,95719.0,95718.0,0.10378451]
[1732837651671,0.20731721,95719.0,95718.0,0.10578451]
[1732837652130,0.10284521,95719.0,95718.0,0.10578451]
[1732837652378,0.10284521,95719.0,95718.0,0.10378451]
[1732837652633,0.0008622,95733.0,95719.0,0.0826]
[1732837652840,0.0008622,95733.0,95719.0,0.08444898]
[1732837652841,0.10284521,95732.0,95719.0,0.08444898]
[1732837653067,0.10284521,95732.0,95731.0,0.104459]
[1732837653716,0.10284521,95732.0,95729.0,0.104461]
[1732837654399,0.10284521,95732.0,95730.0,0.01045572]
[1732837654639,0.10284521,95732.0,95729.0,0.104461]
[1732837654848,0.10384521,95732.0,95729.0,0.104461]
[1732837655099,0.10384521,95732.0,95729.0,0.106461]
[1732837655316,0.10384521,95732.0,95729.0,0.002]
[1732837655541,0.10384521,95732.0,95731.0,0.104459]
[1732837656192,0.10384521,95732.0,95730.0,0.002]
[1732837656647,0.10284521,95732.0,95730.0,0.002]
[1732837656873,0.10284521,95732.0,95731.0,0.00547564]
[1732837657091,0.10384521,95732.0,95731.0,0.00547564]
[1732837657319,0.10384521,95732.0,95731.0,0.1203904]
[1732837657539,0.002,95732.0,95731.0,0.11491476]
[1732837657783,0.002,95732.0,95731.0,0.1203904]
[1732837658302,0.0008622,95733.0,95732.0,0.104458]
[1732837658573,0.1010346,95742.0,95737.0,0.104452]
[1732837658778,0.10284521,95741.0,95737.0,0.104452]
[1732837658999,0.10284521,95741.0,95738.0,0.01045576]
[1732837659228,0.10284521,95741.0,95737.0,0.104452]
[1732837659453,0.10284521,95741.0,95738.0,0.00544672]
[1732837659893,0.10445,95739.0,95738.0,0.00544672]
[1732837660175,0.104449,95740.0,95738.0,0.00544672]
[1732837660404,0.104451,95739.0,95732.0,0.002]
[1732837660628,0.10284521,95741.0,95738.0,0.00544672]
[1732837660851,0.10384521,95741.0,95737.0,0.104452]
[1732837661054,0.10384521,95741.0,95739.0,0.00544672]
[1732837661321,0.10384521,95741.0,95738.0,0.003]
[1732837661566,0.10384521,95741.0,95740.0,0.00544672]
[1732837661794,0.20729321,95741.0,95736.0,0.104453]
[1732837662243,0.20729321,95741.0,95740.0,0.00544672]
[1732837662463,0.20729321,95741.0,95737.0,0.001]
[1732837662711,0.20729321,95741.0,95740.0,0.00544672]
[1732837662933,0.20729321,95741.0,95737.0,0.105452]
[1732837663440,0.20729321,95741.0,95738.0,0.00543542]
[1732837663657,0.20829321,95741.0,95740.0,0.002]
[1732837664132,0.20829321,95741.0,95736.0,0.104453]
[1732837664373,0.20829321,95741.0,95737.0,0.001]
[1732837664595,0.20729321,95741.0,95737.0,0.00543542]
[1732837664837,0.20729321,95741.0,95737.0,0.10988742]
[1732837665074,0.20729321,95741.0,95740.0,0.001]
[1732837665542,0.30579321,95741.0,95740.0,0.001]
[1732837666262,0.104451,95738.0,95737.0,0.002]
[1732837666558,0.104452,95737.0,95736.0,0.001]
[1732837666720,0.104456,95734.0,95728.0,0.104462]
[1732837666961,0.10284521,95734.0,95724.0,0.001724]
[1732837667180,0.001,95741.0,95738.0,0.104451]
[1732837667415,0.10284521,95740.0,95738.0,0.104451]
[1732837667634,0.10284521,95740.0,95737.0,0.002]
[1732837667865,0.20729521,95740.0,95737.0,0.003]
[1732837668081,0.10284521,95740.0,95738.0,0.00543542]
[1732837668535,0.10445,95739.0,95734.0,0.104455]
[1732837668750,0.10284521,95740.0,95719.0,0.09739563]
[1732837668751,0.10284521,95740.0,95739.0,0.00543542]
[1732837668990,0.208904,95738.0,95722.0,0.28132668]
[1732837669221,0.208904,95738.0,95725.0,0.208931]
[1732837669476,0.208904,95738.0,95722.0,0.28132668]
[1732837669477,0.104454,95736.0,95731.0,0.104459]
[1732837669707,0.104454,95736.0,95719.0,0.09739563]
[1732837669708,0.104453,95737.0,95732.0,0.104457]
[1732837669918,0.104453,95737.0,95727.0,0.208927]
[1732837670127,0.104453,95737.0,95733.0,0.104457]
[1732837670338,0.10445,95739.0,95734.0,0.104455]
[1732837671526,0.104451,95738.0,95734.0,0.104455]
[1732837671949,0.104451,95738.0,95735.0,0.00543542]
[1732837673508,0.098451,95738.0,95735.0,0.00543542]
[1732837673905,0.098451,95738.0,95735.0,0.00643542]
[1732837674165,0.25356107,95740.0,95735.0,0.00643542]
[1732837674360,0.104453,95737.0,95735.0,0.00643542]
[1732837674839,0.104453,95737.0,95735.0,0.00843542]
[1732837675051,0.313352,95739.0,95735.0,0.00843542]
[1732837675264,0.208901,95739.0,95735.0,0.00643542]
[1732837675499,0.104452,95737.0,95735.0,0.00843542]
[1732837675707,0.208901,95739.0,95735.0,0.00843542]
[1732837675920,0.208901,95739.0,95735.0,0.00743542]
[1732837676137,0.104452,95738.0,95735.0,0.00743542]
[1732837676351,0.104452,95738.0,95735.0,0.00843542]
[1732837676569,0.104452,95738.0,95735.0,0.00743542]
[1732837676805,0.104452,95738.0,95735.0,0.00543542]
[1732837677053,0.20729821,95736.0,95735.0,0.00643542]
[1732837677283,0.127465,95725.0,95719.0,0.0017244]
[1732837677524,0.23031021,95725.0,95719.0,0.0017244]
[1732837678642,0.104462,95729.0,95723.0,0.104467]
[1732837678863,0.10284521,95728.0,95721.0,0.208939]
[1732837679083,0.10284521,95733.0,95726.0,0.313393]
[1732837679353,0.10284521,95733.0,95725.0,0.208931]
[1732837679354,0.10284521,95733.0,95729.0,0.10446]
[1732837679628,0.10284521,95733.0,95725.0,0.208931]
[1732837679629,0.10284521,95733.0,95731.0,0.104459]
[1732837679863,0.10284521,95733.0,95730.0,0.104459]
[1732837680081,0.10284521,95733.0,95724.0,0.003724]
[1732837680299,0.10284521,95733.0,95726.0,0.104464]
[1732837680521,0.10284521,95733.0,95727.0,0.104462]
[1732837680522,0.20830221,95733.0,95727.0,0.104462]
[1732837680743,0.20830221,95733.0,95731.0,0.03]
[1732837680977,0.20830221,95733.0,95731.0,0.033]
[1732837681192,0.10484521,95733.0,95731.0,0.033]
[1732837681435,0.10484521,95733.0,95731.0,0.031]
[1732837681920,0.20930221,95733.0,95731.0,0.031]
[1732837682177,0.10484521,95733.0,95731.0,0.031]
[1732837682419,0.104458,95732.0,95731.0,0.031]
[1732837682663,0.002,95733.0,95732.0,0.104458]
[1732837682886,0.104449,95740.0,95731.0,0.03]
[1732837683105,0.10284521,95739.0,95734.0,0.104456]
[1732837683321,0.20729521,95739.0,95735.0,0.104454]
[1732837684028,0.104451,95738.0,95731.0,0.031]
[1732837684235,0.104453,95737.0,95733.0,0.104456]
[1732837684904,0.10284521,95738.0,95735.0,0.001]
[1732837685347,0.20729621,95738.0,95735.0,0.001]
[1732837686085,0.10284521,95738.0,95735.0,0.105454]
[1732837686317,0.0008622,95741.0,95739.0,0.10445]
[1732837686505,0.10284521,95740.0,95739.0,0.10445]
[1732837687267,0.10284521,95740.0,95737.0,0.104452]
[1732837687516,0.20729421,95740.0,95739.0,0.001]
[1732837687976,0.104451,95739.0,95732.0,0.208914]
[1732837688204,0.20729621,95739.0,95732.0,0.208914]
[1732837688433,0.20729621,95739.0,95734.0,0.104455]
[1732837688696,0.20129621,95739.0,95735.0,0.104454]
[1732837690246,0.10284521,95739.0,95737.0,0.104451]
[1732837690480,0.10284521,95739.0,95736.0,0.104453]
[1732837690712,0.10284521,95739.0,95735.0,0.003]
[1732837690950,0.104453,95737.0,95735.0,0.003]
[1732837691190,0.10284521,95739.0,95735.0,0.003]
[1732837691410,0.10284521,95739.0,95736.0,0.104453]
[1732837691626,0.10284521,95739.0,95737.0,0.002]
[1732837691845,0.20729521,95739.0,95737.0,0.002]
[1732837692801,0.20729521,95739.0,95737.0,0.003]
[1732837693230,0.10284521,95739.0,95737.0,0.001]
[1732837693494,0.000862,95738.0,95737.0,0.105452]
[1732837694586,0.000862,95738.0,95737.0,0.107452]
[1732837695036,0.000862,95738.0,95737.0,0.105452]
[1732837695478,0.000862,95738.0,95737.0,0.104452]
[1732837695694,0.000862,95738.0,95737.0,0.105452]
[1732837697136,0.000862,95738.0,95737.0,0.107452]
[1732837698479,0.000862,95738.0,95737.0,0.11398619]
[1732837698734,0.000862,95738.0,95737.0,0.00953419]
[1732837698963,0.105313,95738.0,95737.0,0.00953419]
[1732837699447,0.35575821,95738.0,95737.0,0.00953419]
[1732837699900,0.35575821,95738.0,95737.0,0.003]
[1732837700378,0.35575821,95738.0,95737.0,0.001]
[1732837700832,0.50675821,95738.0,95737.0,0.001]
[1732837701085,0.51937015,95738.0,95737.0,0.001]
[1732837701310,0.51837015,95738.0,95737.0,0.001]
[1732837701538,0.41391915,95738.0,95729.0,0.001724]
[1732837701764,0.25126,95730.0,95729.0,0.001724]
[1732837701981,0.35410521,95730.0,95729.0,0.00825956]
[1732837702684,0.35410521,95730.0,95729.0,0.001724]
[1732837703165,0.35810521,95730.0,95729.0,0.001724]
[1732837703619,0.35210521,95730.0,95729.0,0.00825943]
[1732837703840,0.35210521,95730.0,95729.0,0.00825942]
[1732837704802,0.34810521,95730.0,95729.0,0.00825942]
[1732837705014,0.35210521,95730.0,95729.0,0.00825942]
[1732837705459,0.34910521,95730.0,95729.0,0.001724]
[1732837705680,0.35110521,95730.0,95729.0,0.001724]
[1732837705911,0.34910521,95730.0,95729.0,0.001724]
[1732837706370,0.35010521,95730.0,95729.0,0.001724]
[1732837706605,0.35010521,95730.0,95729.0,0.002724]
[1732837707293,0.34810521,95730.0,95729.0,0.001724]
[1732837707513,0.34810521,95730.0,95729.0,0.002724]
[1732837708766,0.35010521,95730.0,95729.0,0.002724]
[1732837708996,0.34810521,95730.0,95729.0,0.002724]
[1732837709220,0.35010521,95730.0,95729.0,0.002724]
[1732837709464,0.34885536,95730.0,95729.0,0.002724]
[1732837713180,0.34685536,95730.0,95729.0,0.001724]
[1732837713398,0.35185536,95730.0,95729.0,0.001724]
[1732837713631,0.34785536,95730.0,95729.0,0.001724]
[1732837713871,0.49785536,95730.0,95729.0,0.001724]
[1732837714090,0.50685536,95730.0,95729.0,0.001724]
[1732837714541,0.50785536,95730.0,95729.0,0.001724]
[1732837715199,0.51285536,95730.0,95729.0,0.001724]
[1732837715431,0.49785536,95730.0,95729.0,0.001724]
[1732837715656,0.50485536,95730.0,95729.0,0.001724]
[1732837716089,0.51385536,95730.0,95729.0,0.001724]
[1732837716522,0.51585536,95730.0,95729.0,0.001724]
[1732837717005,0.73580347,95730.0,95729.0,0.001724]
[1732837717238,0.73780347,95730.0,95729.0,0.001724]
[1732837717474,0.74780347,95730.0,95729.0,0.001724]
[1732837717996,0.74580347,95730.0,95729.0,0.001724]
[1732837718694,0.74980347,95730.0,95729.0,0.001724]
[1732837718925,0.75066567,95730.0,95729.0,0.001724]
[1732837719436,0.77171075,95730.0,95729.0,0.001724]
[1732837719656,0.76471075,95730.0,95729.0,0.001724]
[1732837720146,0.104471,95720.0,95719.0,0.0017244]
[1732837720390,0.50471621,95720.0,95719.0,0.0017244]
[1732837721837,0.51743221,95720.0,95719.0,0.0017244]
[1732837722293,0.52643221,95720.0,95719.0,0.0017244]
[1732837722787,0.51743221,95720.0,95719.0,0.0017244]
[1732837723015,0.52643221,95720.0,95719.0,0.0017244]
[1732837723248,0.76438032,95720.0,95719.0,0.0017244]
[1732837723476,0.75538032,95720.0,95719.0,0.0017244]
[1732837723700,0.75838032,95720.0,95719.0,0.0017244]
[1732837723934,0.76238032,95720.0,95719.0,0.0017244]
[1732837724425,0.75838032,95720.0,95719.0,0.0017244]
[1732837724653,0.61498032,95720.0,95719.0,0.0017244]
[1732837724867,0.46498032,95720.0,95719.0,0.0017244]
[1732837725091,0.45598032,95720.0,95719.0,0.0017244]
[1732837725344,0.46498032,95720.0,95719.0,0.0017244]
[1732837725584,0.44326432,95720.0,95719.0,0.0017244]
[1732837725822,0.44626432,95720.0,95719.0,0.0017244]
[1732837726046,0.44226432,95720.0,95719.0,0.0017244]
[1732837726278,0.38331621,95720.0,95719.0,0.0017244]
[1732837726532,0.38631621,95720.0,95719.0,0.0017244]
[1732837727011,0.38331621,95720.0,95719.0,0.0017244]
[1732837732189,0.50501621,95720.0,95719.0,0.0017244]
[1732837732422,0.60729761,95720.0,95719.0,0.0017244]
[1732837732651,0.50501621,95720.0,95719.0,0.0017244]
[1732837733613,0.49901621,95720.0,95719.0,0.0017244]
[1732837737674,0.37731621,95720.0,95719.0,0.0017244]
[1732837738838,0.37431621,95720.0,95719.0,0.0017244]
[1732837739568,0.37431621,95720.0,95719.0,0.0027244]
[1732837739812,0.37631621,95720.0,95719.0,0.0027244]
[1732837742853,0.20331621,95720.0,95719.0,0.0027244]
[1732837743096,0.002,95720.0,95719.0,0.11373261]
[1732837743576,0.002,95720.0,95719.0,0.1306534]
[1732837743578,0.002,95720.0,95719.0,0.2565534]
[1732837743810,0.002,95720.0,95719.0,0.25470445]
[1732837744532,0.0008623,95724.0,95719.0,0.25470445]
[1732837744533,0.0008623,95724.0,95720.0,0.104471]
[1732837744758,0.0008623,95724.0,95721.0,0.12146285]
[1732837744988,0.0008623,95724.0,95722.0,0.12146185]
[1732837745221,0.0008623,95724.0,95723.0,0.01699385]
[1732837745683,0.0008623,95724.0,95723.0,0.12146185]
[1732837745966,0.0018623,95724.0,95723.0,0.12607605]
[1732837746241,0.0008623,95724.0,95723.0,0.12607605]
[1732837746464,0.0008623,95724.0,95723.0,0.12807605]
[1732837748337,0.0018623,95724.0,95723.0,0.12807605]
[1732837748590,0.208907,95737.0,95724.0,0.208934]
[1732837748833,0.104455,95735.0,95730.0,0.10446]
[1732837749063,0.104455,95735.0,95731.0,0.01699385]
[1732837749300,0.15108005,95740.0,95732.0,0.01699385]
[1732837749530,0.10370721,95738.0,95734.0,0.104455]
[1732837749781,0.10370721,95738.0,95735.0,0.01112073]
[1732837750031,0.003,95737.0,95736.0,0.00653621]
[1732837750268,0.20815921,95738.0,95736.0,0.00653621]
[1732837750512,0.10370721,95738.0,95737.0,0.01112073]
[1732837750991,0.20815821,95738.0,95737.0,0.01112073]
[1732837751454,0.20815821,95738.0,95737.0,0.00653621]
[1732837751679,0.20815821,95738.0,95737.0,0.01112073]
[1732837752664,0.000862,95738.0,95737.0,0.01112073]
[1732837752892,0.108313,95738.0,95737.0,0.01112073]
[1732837753138,0.108313,95738.0,95737.0,0.01111917]
[1732837753390,0.108313,95738.0,95737.0,0.00653465]
[1732837753612,0.108313,95738.0,95737.0,0.01698985]
[1732837754052,0.108313,95738.0,95737.0,0.01111917]
[1732837754735,0.003862,95738.0,95737.0,0.01111917]
[1732837754966,0.108313,95738.0,95737.0,0.01111917]
[1732837755417,0.003862,95738.0,95737.0,0.01111917]
[1732837755888,0.108313,95738.0,95737.0,0.01111917]
[1732837756136,0.108313,95738.0,95737.0,0.00653465]
[1732837756394,0.108313,95738.0,95737.0,0.00653445]
[1732837759611,0.108313,95738.0,95733.0,0.104457]
[1732837759847,0.108313,95738.0,95734.0,0.11099046]
[1732837760084,0.003862,95738.0,95735.0,0.00653446]
[1732837760334,0.104453,95736.0,95732.0,0.104457]
[1732837760570,0.104453,95736.0,95707.0,0.28089388]
[1732837760571,0.10446,95731.0,95722.0,0.208937]
[1732837760802,0.104456,95734.0,95728.0,0.104462]
[1732837761042,0.212765,95738.0,95717.0,0.255147]
[1732837761278,0.208905,95737.0,95726.0,0.208929]
[1732837761514,0.208905,95737.0,95730.0,0.10446]
[1732837761748,0.105314,95738.0,95720.0,0.208942]
[1732837761974,0.108314,95738.0,95732.0,0.104457]
[1732837762201,0.104453,95737.0,95732.0,0.104457]
[1732837762647,0.107453,95737.0,95732.0,0.104457]
[1732837762921,0.104453,95737.0,95732.0,0.104457]
[1732837763584,0.098453,95737.0,95732.0,0.104457]
[1732837764990,0.003,95737.0,95719.0,0.0017244]
[1732837765221,0.104455,95735.0,95729.0,0.104461]
[1732837765459,0.104455,95735.0,95730.0,0.10446]
[1732837765917,0.104455,95735.0,95731.0,0.104458]
[1732837766605,0.106455,95735.0,95732.0,0.0017244]
[1732837766944,0.000862,95738.0,95733.0,0.208914]
[1732837767176,0.000862,95738.0,95737.0,0.104452]
[1732837767395,0.000862,95738.0,95737.0,0.10630057]
[1732837768327,0.000862,95738.0,95737.0,0.104452]
[1732837768805,0.001862,95738.0,95737.0,0.001]
[1732837769047,0.001862,95738.0,95737.0,0.104452]
[1732837769048,0.000862,95738.0,95737.0,0.104452]
[1732837769285,0.000862,95738.0,95737.0,0.11752014]
[1732837769538,0.002862,95738.0,95737.0,0.12052014]
[1732837769768,0.002862,95738.0,95737.0,0.13452015]
[1732837769987,0.001862,95738.0,95737.0,0.13352015]
[1732837770236,0.001862,95738.0,95737.0,0.02906815]
[1732837770453,0.107313,95738.0,95737.0,0.03106815]
[1732837770688,0.002862,95738.0,95737.0,0.03106815]
[1732837771370,0.001862,95738.0,95737.0,0.03006815]
[1732837771598,0.001862,95738.0,95737.0,0.02806815]
[1732837771599,0.000862,95738.0,95737.0,0.02806815]
[1732837771847,0.002862,95738.0,95737.0,0.03106815]
[1732837772105,0.001862,95738.0,95737.0,0.03006815]
[1732837772333,0.106313,95738.0,95737.0,0.02906815]
[1732837772782,0.002862,95738.0,95737.0,0.03106815]
[1732837774508,0.002862,95738.0,95737.0,0.13552015]
[1732837775286,0.002862,95738.0,95737.0,0.122452]
[1732837776020,0.107313,95738.0,95737.0,0.018]
[1732837776490,0.002862,95738.0,95737.0,0.018]
[1732837776949,0.107313,95738.0,95737.0,0.018]
[1732837777192,0.002862,95738.0,95737.0,0.018]
[1732837778588,0.1053112,95741.0,95737.0,0.018]
[1732837778589,0.1030352,95741.0,95737.0,0.018]
[1732837779073,0.10445,95740.0,95737.0,0.018]
[1732837779835,0.10445,95740.0,95737.0,0.017]
[1732837780070,0.10445,95740.0,95737.0,0.018]
[1732837780296,0.10445,95740.0,95737.0,0.015]
[1732837780523,0.10445,95740.0,95737.0,0.016]
[1732837780759,0.10545,95740.0,95737.0,0.016]
[1732837781006,0.185951,95738.0,95737.0,0.016]
[1732837781257,0.28879621,95738.0,95737.0,0.016]
[1732837781481,0.28879621,95738.0,95737.0,0.018]
[1732837782258,0.20729621,95738.0,95737.0,0.016]
[1732837782294,0.20829621,95738.0,95737.0,0.018]
[1732837782697,0.20929621,95738.0,95737.0,0.021]
[1732837784519,0.10484521,95738.0,95737.0,0.021]
[1732837784747,0.20929621,95738.0,95737.0,0.021]
[1732837785409,0.10484521,95738.0,95737.0,0.021]
[1732837785639,0.20929621,95738.0,95737.0,0.021]
[1732837786283,0.20929621,95738.0,95737.0,0.03406836]
[1732837788273,0.10484521,95738.0,95737.0,0.03406836]
[1732837788484,0.20929621,95738.0,95737.0,0.03406836]
[1732837789226,0.20929621,95738.0,95737.0,0.021]
[1732837789868,0.10484521,95738.0,95737.0,0.021]
[1732837790142,0.002,95738.0,95737.0,0.125452]
[1732837790369,0.002,95738.0,95737.0,0.021]
[1732837791009,0.002,95738.0,95737.0,0.0227244]
[1732837791222,0.0028622,95738.0,95737.0,0.0227244]
[1732837792763,0.0028622,95738.0,95737.0,0.1271764]
[1732837792982,0.0028622,95738.0,95737.0,0.0227244]
[1732837793405,0.208893,95743.0,95737.0,0.0227244]
[1732837793615,0.104449,95741.0,95737.0,0.0227244]
[1732837794311,0.10445,95740.0,95737.0,0.0227244]
[1732837794526,0.10445,95740.0,95737.0,0.0167244]
[1732837794770,0.10445,95740.0,95737.0,0.0207244]
[1732837795676,0.105449,95741.0,95737.0,0.0207244]
[1732837795897,0.105449,95741.0,95737.0,0.0187244]
[1732837796108,0.104449,95741.0,95737.0,0.0167244]
[1732837796346,0.002,95740.0,95737.0,0.0217244]
[1732837796529,0.106449,95740.0,95737.0,0.0217244]
[1732837796731,0.105449,95740.0,95737.0,0.0187244]
[1732837796940,0.001,95740.0,95737.0,0.0217244]
[1732837797149,0.001,95740.0,95737.0,0.1261754]
[1732837797360,0.001,95740.0,95737.0,0.0187244]
[1732837797560,0.105449,95740.0,95737.0,0.0197244]
[1732837797770,0.001,95740.0,95738.0,0.104451]
[1732837797996,0.001,95740.0,95737.0,0.0237244]
[1732837798444,0.001,95740.0,95738.0,0.015]
[1732837798666,0.002,95740.0,95738.0,0.015]
[1732837798871,0.10445,95739.0,95738.0,0.015]
[1732837799510,0.10284521,95742.0,95738.0,0.015]
[1732837799737,0.001,95740.0,95738.0,0.018]
[1732837799961,0.10445,95739.0,95738.0,0.015]
[1732837800192,0.001,95740.0,95738.0,0.015]
[1732837800426,0.001,95739.0,95738.0,0.018]
[1732837800637,0.001,95739.0,95738.0,0.02806814]
[1732837800861,0.001,95739.0,95738.0,0.03406814]
[1732837801286,0.10445,95739.0,95738.0,0.02806814]
[1732837801551,0.10545,95739.0,95738.0,0.03106814]
[1732837802647,0.10645,95739.0,95738.0,0.03406814]
[1732837802884,0.002,95739.0,95738.0,0.13851914]
[1732837803297,0.002,95739.0,95738.0,0.125451]
[1732837805631,0.002,95739.0,95738.0,0.40745288]
[1732837807398,0.10645,95739.0,95738.0,0.30300188]
[1732837807615,0.10645,95739.0,95738.0,0.021]
[1732837808521,0.10045,95739.0,95738.0,0.021]
[1732837809837,0.10045,95739.0,95738.0,0.03353892]
[1732837810494,0.10045,95739.0,95738.0,0.021]
[1732837811583,0.10045,95739.0,95738.0,0.03353927]
[1732837813869,0.10045,95739.0,95738.0,0.03526347]
[1732837817926,0.001,95740.0,95738.0,0.03526347]
[1732837818155,0.001,95740.0,95739.0,0.01253927]
[1732837818833,0.105449,95740.0,95739.0,0.01253927]
[1732837819049,0.104449,95740.0,95739.0,0.01253927]
[1732837819270,0.104449,95740.0,95739.0,0.02599371]
[1732837819494,0.105449,95740.0,95739.0,0.02599509]
[1732837819940,0.106449,95740.0,95739.0,0.02599509]
[1732837820158,0.002,95740.0,95739.0,0.003]
[1732837820374,0.105449,95740.0,95739.0,0.003]
[1732837820881,0.002,95740.0,95739.0,0.007]
[1732837821103,0.002,95740.0,95739.0,0.02398845]
[1732837821323,0.106449,95740.0,95739.0,0.02398845]
[1732837823523,0.176349,95740.0,95739.0,0.02398845]
[1732837826955,0.1772112,95740.0,95739.0,0.02398845]
[1732837828730,0.0767622,95740.0,95739.0,0.02398845]
[1732837828956,0.0008622,95740.0,95739.0,0.12843845]
[1732837829819,0.0008622,95740.0,95739.0,0.41050347]
[1732837830022,0.0008622,95740.0,95739.0,0.12843845]
[1732837830239,0.0008622,95740.0,95739.0,0.1284384]
[1732837831997,0.0008622,95740.0,95739.0,0.0239884]
[1732837832235,0.0008622,95740.0,95739.0,0.1284384]
[1732837835045,0.0008622,95740.0,95739.0,0.0239884]
[1732837835955,0.0008622,95740.0,95739.0,0.1284384]
[1732837836135,0.0008621,95741.0,95740.0,0.0141378]
[1732837836339,0.0008621,95741.0,95740.0,0.0311262]
[1732837836543,0.0008621,95741.0,95740.0,0.0211662]
[1732837838431,0.1001702,95743.0,95740.0,0.0211662]
[1732837838631,0.001,95741.0,95740.0,0.0081778]
[1732837838862,0.001,95741.0,95740.0,0.0251663]
[1732837839084,0.001,95741.0,95740.0,0.0301663]
[1732837839307,0.104447,95742.0,95740.0,0.0261663]
[1732837839564,0.208889,95745.0,95741.0,0.0169885]
[1732837839754,0.001,95743.0,95742.0,0.0169885]
[1732837839958,0.105446,95743.0,95742.0,0.0169885]
[1732837841661,0.104446,95743.0,95742.0,0.0169885]
[1732837841868,0.104446,95743.0,95742.0,0.0209885]
[1732837842095,0.105446,95743.0,95742.0,0.0133635]
[1732837842527,0.105446,95743.0,95742.0,0.0173635]
[1732837845558,0.42433301,95743.0,95742.0,0.0173635]
[1732837845783,0.104448,95741.0,95740.0,0.0041778]
[1732837846059,0.53946879,95741.0,95740.0,0.0041778]
[1732837846504,0.53946879,95741.0,95739.0,0.0017244]
[1732837846505,0.44502079,95741.0,95739.0,0.0017244]
[1732837846730,0.82544243,95743.0,95713.0,0.0145818]
[1732837846731,0.254456,95734.0,95713.0,0.0145818]
[1732837846944,0.53943778,95734.0,95713.0,0.0145818]
[1732837847420,0.50780121,95734.0,95713.0,0.0145818]
[1732837849435,0.51380121,95734.0,95713.0,0.0145818]
[1732837849922,0.254471,95720.0,95713.0,0.0145818]
[1732837850147,0.51061621,95720.0,95713.0,0.0145818]
[1732837851562,0.52375478,95720.0,95713.0,0.0145818]
[1732837852012,0.52975478,95720.0,95713.0,0.0145818]
[1732837852225,0.53175478,95720.0,95713.0,0.0145818]
[1732837853353,0.52575478,95720.0,95713.0,0.0145818]
[1732837854868,0.22575478,95720.0,95713.0,0.0145818]
[1732837855131,0.33022578,95720.0,95713.0,0.0145818]
[1732837856880,0.48022578,95720.0,95713.0,0.0145818]
[1732837860946,0.55162571,95720.0,95713.0,0.0145818]
[1732837861198,0.264477,95714.0,95713.0,0.0145818]
[1732837861423,0.51462221,95714.0,95713.0,0.0145818]
[1732837861645,0.50462221,95714.0,95713.0,0.0145818]
[1732837862590,0.51362221,95714.0,95713.0,0.0145818]
[1732837862841,0.50462221,95714.0,95713.0,0.0145818]
[1732837863051,0.38532221,95714.0,95713.0,0.0145818]
[1732837863279,0.38532221,95714.0,95713.0,0.01476551]
[1732837863280,0.11684521,95714.0,95713.0,0.01476551]
[1732837863749,0.014,95714.0,95713.0,0.20199372]
[1732837863961,0.014,95714.0,95713.0,0.11016089]
[1732837864185,0.014,95714.0,95713.0,0.01476551]
[1732837864407,0.009,95714.0,95713.0,0.01476551]
[1732837864624,0.20893,95726.0,95713.0,0.01476551]
[1732837864847,0.004,95714.0,95713.0,0.11924451]
[1732837865195,0.104469,95722.0,95713.0,0.11924451]
[1732837865408,0.12584521,95721.0,95713.0,0.01476551]
[1732837865635,0.01290131,95733.0,95715.0,0.208953]
[1732837865841,0.10284521,95732.0,95716.0,0.0018489]
[1732837866040,0.104459,95731.0,95724.0,0.104466]
[1732837866377,0.10284521,95730.0,95720.0,0.208942]
[1732837866613,0.104463,95728.0,95718.0,0.0809]
[1732837866837,0.104465,95726.0,95718.0,0.0809]
[1732837867077,0.20731121,95725.0,95718.0,0.0809]